{"text_format":"2","workbook":"xlsx","n_sheets":1,"sheets":["Sheet1"],"not_rendered":{"charts":0,"images":0,"macros":0,"external_links":0,"defined_names":0,"comments":0,"pivot_tables":0},"unopened":[],"bounds":{"document_bytes":16777216,"sheet_cells":100000,"run_cost":"one","rows_first":2000,"rows_last":500,"rows_between":2000,"halvings":0,"cell_chars":16384,"cell_head_chars":4096},"cells_cut":0,"cells_raw":0,"read":"whole","date_system":"1900"}

{"sheet":"Sheet1","index":0,"n_rows":158,"n_cols":6,"rows_kept":158,"cut":false,"hidden":false,"merged":[]}
["Részajánlati kör száma","Termék megnevezése","Egységár  (nettó Ft/kiszerelés)","Mennyiség","Nettó ár összesen","ÁFA mértéke (%)"]
[1,"ProSieve EX Running Buffer vagy ezzel egyenértékű",null,2,{"$f":"C2*D2","v":0}]
[null,null,null,"Ajánlati összár (felolvasólapon rögzítendő)",{"$f":"SUM(E2)","v":0}]
[]
[2,"MEM Non-Essential Amino Acids Solution ",null,1,{"$f":"C5*D5","v":0}]
[null,null,null,"Ajánlati összár (felolvasólapon rögzítendő)",{"$f":"SUM(E5)","v":0}]
[]
[3,"GIBCO gyártmányú Medium254 vagy ezzel egyenértékű",null,6,{"$f":"C8*D8","v":0}]
[3,"GIBCO gyártmányú Human Melanocyte Growth Supplement (HMGS)",null,6,{"$f":"C9*D9","v":0}]
[null,null,null,"Ajánlati összár (felolvasólapon rögzítendő)",{"$f":"SUM(E8:E9)","v":0}]
[]
[4,"TaqMan® Gene Expression Assays",null,2,{"$f":"C12*D12","v":0}]
[null,null,null,"Ajánlati összár (felolvasólapon rögzítendő)",{"$f":"SUM(E12)","v":0}]
[]
[5,"Fixation/ Permeabilization Concentrate, vagy azzal egyenértékű",null,1,{"$f":"C15*D15","v":0}]
[5,"Fixation/ Permeabilization Diluent, vagy azzal egyenértékű",null,1,0]
[5,"Permeabilisation buffer (10x) vagy azzal egyenértékű",null,1,0]
[5,"TURBO DNA-free™ Kit vagy azzal egyenértékű termék",null,1,0]
[5,"Stem Pro Osteogenesis Differentiation kit ",null,1,0]
[5,"Stem Pro Chondrogenesis Differentiation kit ",null,1,0]
[5,"Stem Pro Adipogenesis Differentiation kit ",null,1,0]
[null,null,null,"Ajánlati összár (felolvasólapon rögzítendő)",{"$f":"SUM(E15:E21)","v":0}]
[]
[6,"Fetal Bovine serum",null,12,{"$f":"C24*D24","v":0}]
[6,"GIBCO gyártójú Keratinocyte-SFM, 1X vagy ezzel egyenértékű",null,60,0]
[6,"TGFB1 Recombinant Human Protein",null,1,0]
[6,"IL4 Recombinant Human Protein",null,1,0]
[6,"GM-CSF Recombinant Human Protein, Animal Origin Free",null,1,0]
[6," Lonza 12-614F/12 DMEM high glükóz  (4,5g glükóz) médium, vagy ezzel egyenértékű",null,4,0]
[6,"Lonza 12-707F/12 DMEM low glükóz  (1g glükóz) médium, vagy ezzel egyenértékű",null,4,0]
[6,"Lonza 12-167F/12 RPMI 1640 vagy ezzel egyenértékű",null,4,0]
[6,"Lonza 17-516F/12 PBS vagy ezzel egyenértékű",null,3,0]
[6,"Penicillin-Streptomycin-Amphotericin B Mixture",null,10,0]
[6,"L-glutamin 200mM",null,2,0]
[6,"DMEM F12 médium",null,4,0]
[null,null,null,"Ajánlati összár (felolvasólapon rögzítendő)",{"$f":"SUM(E24:E35)","v":0}]
[]
[7,"ProSieve QuadColourTM Protein marker vagy ezzel egyenértékű",null,1,0]
[7,"ProSieve EX western blot Transfer Buffer vagy ezzal egyenértékű",null,2,0]
[null,null,null,"Ajánlati összár (felolvasólapon rögzítendő)",{"$f":"SUM(E38:E39)","v":0}]
[]
[8,"Ficoll Paque Plus vagy ezzel egyenértékű",null,2,0]
[null,null,null,"Ajánlati összár (felolvasólapon rögzítendő)",{"$f":"SUM(E42)","v":0}]
[]
[9,"Sebomend Basal Medium Sebocyte medium, vagy azzal egyenértékű",null,4,0]
[null,null,null,"Ajánlati összár (felolvasólapon rögzítendő)",{"$f":"SUM(E45)","v":0}]
[]
[10,"Human IL-1β ELISA MAX™ Deluxe, vagy azzal egyenértékű",null,1,0]
[10,"Human IL-1α ELISA MAX™ Deluxe, vagy azzal egyenértékű",null,1,0]
[10,"Human IL-10 ELISA MAX™ Standard, vagy azzal egyenértékű",null,1,0]
[10,"Human IL-12 (p70) ELISA MAX™ Standard, vagy azzal egyenértékű",null,1,0]
[10,"Human IL-6 ELISA MAX™ Standard, vagy azzal egyenértékű",null,1,0]
[10,"Human IL-8 ELISA MAX™ Standard, vagy azzal egyenértékű",null,1,0]
[10,"Human CCL5 (RANTES) ELISA MAX™ Deluxe, vagy azzal egyenértékű",null,1,0]
[10,"Human TNF-α ELISA MAX™ Standard, vagy azzal egyenértékű",null,1,0]
[10,"Human IFN-γ ELISA MAX™ Standard, vagy azzal egyenértékű",null,1,0]
[null,null,null,"Ajánlati összár (felolvasólapon rögzítendő)",{"$f":"SUM(E48:E56)","v":0}]
[]
[11,"MagCellect Human CD14+ Cell Isolation Kit vagy azzal egyenértékű",null,1,0]
[null,null,null,"Ajánlati összár (felolvasólapon rögzítendő)",{"$f":"SUM(E59)","v":0}]
[]
[12,"Retinoic acid",null,1,0]
[12,"MEM Vitamine Solution",null,2,0]
[null,null,null,"Ajánlati összár (felolvasólapon rögzítendő)",{"$f":"SUM(E62:E63)","v":0}]
[]
[13,"342003 katalógusszámú BD FACSFlow Sheath Fluid, vagy azzal egyenértékű",null,1,0]
[null,null,null,"Ajánlati összár (felolvasólapon rögzítendő)",{"$f":"SUM(E66)","v":0}]
[]
[14,"Pierce ECL Plus Western Blotting Substrate",null,1,0]
[null,null,null,"Ajánlati összár (felolvasólapon rögzítendő)",{"$f":"SUM(E69)","v":0}]
[]
[15,"2q PCR Probe Mix vagy ezzel egyenértékű",null,1,0]
[null,null,null,"Ajánlati összár (felolvasólapon rögzítendő)",{"$f":"SUM(E72)","v":0}]
[]
[16,"UPL probe #86 cat. No.: 04689119001",null,1,0]
[16,"UPL probe #80 cat. No.: 04689038001",null,1,0]
[16,"UPL probe #79 cat. No.: 04689020001",null,1,0]
[16,"UPL probe #77 cat. No.: 04689003001",null,1,0]
[16,"UPL probe #74 cat. No.: 04688970001",null,1,0]
[16,"UPL probe #71 cat. No.: 04688945001",null,1,0]
[16,"UPL probe #69 cat. No.: 04688686001",null,1,0]
[16,"UPL probe #67 cat. No.: 04688660001",null,1,0]
[16,"UPL probe #62 cat. No.: 04688619001",null,1,0]
[16,"UPL probe #59 cat. No.: 04688562001",null,1,0]
[16,"UPL probe #55 cat. No.: 04688520001",null,1,0]
[16,"UPL probe #50 cat. No.: 04688112001",null,1,0]
[16,"UPL probe #45 cat. No.: 04688058001",null,1,0]
[16,"UPL probe #37 cat. No.: 04687957001",null,1,0]
[16,"UPL probe #36 cat. No.: 04687949001",null,1,0]
[16,"UPL probe #33 cat. No.: 04687663001",null,1,0]
[16,"UPL probe #30 cat. No.: 04687639001",null,1,0]
[16,"UPL probe #24 cat. No.: 04686985001",null,1,0]
[16,"UPL probe #20 cat. No.: 04686934001",null,1,0]
[16,"UPL probe #19 cat. No.: 04685121001",null,1,0]
[16,"UPL probe #14 cat. No.: 04685130001",null,1,0]
[16,"UPL probe #10 cat. No.: 04685091001",null,1,0]
[16,"UPL probe #09 cat. No.: 04685075001",null,1,0]
[null,null,null,"Ajánlati összár (felolvasólapon rögzítendő)",{"$f":"SUM(E75:E97)","v":0}]
[]
[17,"EvoScript Universal cDNA Master",null,5,0]
[null,null,null,"Ajánlati összár (felolvasólapon rögzítendő)",{"$f":"SUM(E100)","v":0}]
[]
[18,"Trypan Blue Solution ",null,2,0]
[18,"TRI-Reagent",null,6,0]
[null,null,null,"Ajánlati összár (felolvasólapon rögzítendő)",{"$f":"SUM(E103:E104)","v":0}]
[]
[19,"X-TREMEGENE 9 DNA transfection reagent vagy ezzel egyenértékű",null,1,0]
[19,"X-TREMEGENE HP DNA transfection reagent vagy ezzel egyenértékű",null,1,0]
[19,"X-tremeGENE™ siRNA Transfection Reagent vagy ezzel egyenértékű",null,1,0]
[null,null,null,"Ajánlati összár (felolvasólapon rögzítendő)",{"$f":"SUM(E107:E109)","v":0}]
[]
[20,"Trypsin-EDTA solution 0,25%",null,8,0]
[20,"Dimethyl Sulfoxide ",null,1,0]
[null,null,null,"Ajánlati összár (felolvasólapon rögzítendő)",{"$f":"SUM(E112:E113)","v":0}]
[]
[21,"WesternSure Premium Chemiluminescent Substrate Sample Pack, vagy azzal egyenértékű termék",null,1,{"$f":"C116*D116","v":0}]
[null,null,null,"Ajánlati összár (felolvasólapon rögzítendő)",{"$f":"SUM(E116)","v":0}]
[]
[22,"10010023 katalógus számú Foszfát pufferelt sóoldat (PBS), vagy azzal egyenértékű",null,30,{"$f":"C119*D119","v":0}]
[22,"10500064 katalógus számú Fötális szarvasmarha szérum (FBS), vagy azzal egyenértékű",null,10,0]
[22,"35050061 katalógus számú L-alanyl-L-Glutamin oldat (GlutaMAX), vagy azzal egyenértékű",null,10,0]
[22,"15240062 katalógus számú antibiotikus antimikotikus oldat, vagy azzal egyenértékű",null,10,0]
[22,"25200072 katalógus számú 0.25% Typsin-EDTA oldat, vagy azzal egyenértékű",null,20,0]
[22,"31985070 katalógus számú OptiMEM, vagy azzal egyenértékű",null,30,0]
[22,"10313021 katalógus számú DMEM with 4,5g glucose, vagy azzal egyenértékű",null,30,0]
[null,null,null,"Ajánlati összár (felolvasólapon rögzítendő)",{"$f":"SUM(E119:E125)","v":0}]
[]
[23,"11668019 katalógus számú Lipofectamin, vagy azzal egyenértékű",null,3,{"$f":"C128*D128","v":0}]
[23,"F1201 katalógus számú Fura2-AM, vagy azzal egyenértékű",null,6,0]
[23,"B1150 katalógus számú BCECF-AM, vagy azzal egyenértékű",null,6,0]
[23,"R1245MP katalógus számú Rhod-2-AM, vagy azzal egyenértékű",null,1,0]
[null,null,null,"Ajánlati összár (felolvasólapon rögzítendő)",{"$f":"SUM(E125:E131)","v":0}]
[]
[24,"2939/50 katalógus számú Y-27632 dihydrochloride, vagy azzal egyenértékű",null,1,{"$f":"C134*D134","v":0}]
[24,"1254/50 katalógus számú Y-27632 dihydrochloride, vagy azzal egyenértékű",null,1,0]
[24,"1235/50 katalógus számú Cyclopiazonic acid, vagy azzal egyenértékű",null,4,0]
[24,"1099/50 katalógus számú Forskolin, vagy azzal egyenértékű",null,4,0]
[null,null,null,"Ajánlati összár (felolvasólapon rögzítendő)",{"$f":"SUM(E131:E137)","v":0}]
[]
[25,"D6421 katalógus számú DMEM:F-12, vagy azzal egyenértékű",null,4,{"$f":"C140*D140","v":0}]
[25,"M8403 McCoy’s 5A Medium, vagy azzal egyenértékű",null,30,0]
[25,"G0759 katalógus számú Sodium glycochenodeoxycholate, vagy azzal egyenértékű",null,1,0]
[25,"G0759 katalógus számú Sodium taurochenodeoxycholate, vagy azzal egyenértékű",null,1,0]
[25,"D2650-100ml katalógus számú Dimetil-szulfoxid oldat, vagy azzal egyenértékű",null,2,0]
[25,"G9145 katalógus számú humán Gasztrin I, vagy azzal egyenértékű",null,2,0]
[null,null,null,"Ajánlati összár (felolvasólapon rögzítendő)",{"$f":"SUM(E139:E145)","v":0}]
[]
[26,"734-0270 katalógus számú Matrigel® Basement Membrane Matrix, vagy azzal egyenértékű",null,2,{"$f":"C148*D148","v":0}]
[null,null,null,"Ajánlati összár (felolvasólapon rögzítendő)",{"$f":"SUM(E142:E148)","v":0}]
[]
[27,"M-CSF from mouse  vagy azzal egyenértékű",null,3,{"$f":"C151*D151","v":0}]
[null,null,null,"Ajánlati összár (felolvasólapon rögzítendő)",{"$f":"SUM(E145:E151)","v":0}]
[]
[28,"Maxima SYBR Green/Fluorescein qPCR Master Mix (2X)",null,3,{"$f":"C154*D154","v":0}]
[null,null,null,"Ajánlati összár (felolvasólapon rögzítendő)",{"$f":"SUM(E148:E154)","v":0}]
[]
[29,"Egyedi génexpressziós kit 45 génre optimalizálva (48rxn)",null,2,{"$f":"C157*D157","v":0}]
[null,null,null,"Ajánlati összár (felolvasólapon rögzítendő)",{"$f":"SUM(E151:E157)","v":0}]